[Event "Titled Tuesday Blitz July 18 Late 2023"]
[White "Shuvalova, Polina"]
[Black "szachmistrz2500"]
[WhiteFideId "24171760"]
[WhiteElo "2671"]
[BlackElo "2471"]
[Result "1/2-1/2"]
[Round "3"]
[TimeControl "180+2"]
[Date "2023.07.18"]
[WhiteClock "0:00:08"]
[BlackClock "0:00:21"]
[Board "74"]

1. f4 {[%clk 0:03:00]}  g6 {[%clk 0:02:58]} 2. Nf3 {[%clk 0:03:00]}  Bg7 {[%clk 0:02:58]} 3. g3 {[%clk 0:03:00]}  c5 {[%clk 0:02:57]} 4. Bg2 {[%clk 0:03:00]}  Nc6 {[%clk 0:02:56]} 5. O-O {[%clk 0:03:00]}  e6 {[%clk 0:02:51]} 6. e4 {[%clk 0:03:00]}  Nge7 {[%clk 0:02:50]} 7. d3 {[%clk 0:03:00]}  d5 {[%clk 0:02:49]} 8. e5 {[%clk 0:02:56]}  b5 {[%clk 0:02:48]} 9. Be3 {[%clk 0:02:54]}  d4 {[%clk 0:02:44]} 10. Bf2 {[%clk 0:02:54]}  Bb7 {[%clk 0:02:44]} 11. Nbd2 {[%clk 0:02:54]}  Nf5 {[%clk 0:02:37]} 12. Ne4 {[%clk 0:02:44]}  Qe7 {[%clk 0:02:31]} 13. a4 {[%clk 0:02:44]}  a6 {[%clk 0:02:28]} 14. Qe2 {[%clk 0:02:42]}  h5 {[%clk 0:02:23]} 15. Nfd2 {[%clk 0:02:21]}  O-O {[%clk 0:02:18]} 16. h3 {[%clk 0:02:14]}  Nb4 {[%clk 0:02:16]} 17. g4 {[%clk 0:01:57]}  hxg4 {[%clk 0:02:14]} 18. hxg4 {[%clk 0:01:57]}  Ne3 {[%clk 0:02:05]} 19. Bxe3 {[%clk 0:01:53]}  dxe3 {[%clk 0:02:04]} 20. Nb3 {[%clk 0:01:45]}  c4 {[%clk 0:01:45]} 21. Nbc5 {[%clk 0:01:28]}  Bxe4 {[%clk 0:01:32]} 22. Nxe4 {[%clk 0:01:26]}  cxd3 {[%clk 0:01:30]} 23. cxd3 {[%clk 0:01:26]}  Rac8 {[%clk 0:01:21]} 24. axb5 {[%clk 0:01:25]}  axb5 {[%clk 0:01:21]} 25. Rac1 {[%clk 0:01:10]}  Nd5 {[%clk 0:01:15]} 26. Rxc8 {[%clk 0:01:05]}  Rxc8 {[%clk 0:01:14]} 27. Nd6 {[%clk 0:01:06]}  Rd8 {[%clk 0:00:55]} 28. Bxd5 {[%clk 0:01:06]}  exd5 {[%clk 0:00:52]} 29. d4 {[%clk 0:01:06]}  Bf8 {[%clk 0:00:47]} 30. Rf3 {[%clk 0:01:02]}  Qa7 {[%clk 0:00:44]} 31. Nxb5 {[%clk 0:00:56]}  Qb6 {[%clk 0:00:44]} 32. Rxe3 {[%clk 0:00:52]}  Rb8 {[%clk 0:00:44]} 33. Rb3 {[%clk 0:00:51]}  Qa6 {[%clk 0:00:42]} 34. f5 {[%clk 0:00:50]}  Qa4 {[%clk 0:00:40]} 35. Qd3 {[%clk 0:00:45]}  Qc4 {[%clk 0:00:38]} 36. Qxc4 {[%clk 0:00:14]}  dxc4 {[%clk 0:00:39]} 37. Rc3 {[%clk 0:00:15]}  gxf5 {[%clk 0:00:35]} 38. Nc7 {[%clk 0:00:11]}  fxg4 {[%clk 0:00:33]} 39. d5 {[%clk 0:00:09]}  Bc5+ {[%clk 0:00:31]} 40. Kg2 {[%clk 0:00:07]}  Rxb2+ {[%clk 0:00:29]} 41. Kg3 {[%clk 0:00:08]}  Bd4 {[%clk 0:00:29]} 42. Rxc4 {[%clk 0:00:06]}  Bxe5+ {[%clk 0:00:29]} 43. Kxg4 {[%clk 0:00:07]}  Bxc7 {[%clk 0:00:28]} 44. Rxc7 {[%clk 0:00:07]}  Rd2 {[%clk 0:00:27]} 45. Rd7 {[%clk 0:00:07]}  Kf8 {[%clk 0:00:27]} 46. Kf5 {[%clk 0:00:08]}  Ke8 {[%clk 0:00:27]} 47. Rd6 {[%clk 0:00:08]}  Ke7 {[%clk 0:00:26]} 48. Ra6 {[%clk 0:00:07]}  Rxd5+ {[%clk 0:00:26]} 49. Kf4 {[%clk 0:00:08]}  Kf8 {[%clk 0:00:25]} 50. Ke4 {[%clk 0:00:07]}  Rb5 {[%clk 0:00:25]} 51. Kf4 {[%clk 0:00:08]}  Kg7 {[%clk 0:00:25]} 52. Rc6 {[%clk 0:00:08]}  Ra5 {[%clk 0:00:24]} 53. Rb6 {[%clk 0:00:09]}  f6 {[%clk 0:00:24]} 54. Kg4 {[%clk 0:00:09]}  Kg6 {[%clk 0:00:24]} 55. Kf4 {[%clk 0:00:09]}  Ra4+ {[%clk 0:00:24]} 56. Kg3 {[%clk 0:00:09]}  Kg5 {[%clk 0:00:24]} 57. Rb5+ {[%clk 0:00:09]}  f5 {[%clk 0:00:24]} 58. Rb8 {[%clk 0:00:10]}  Ra3+ {[%clk 0:00:24]} 59. Kf2 {[%clk 0:00:10]}  Kg4 {[%clk 0:00:23]} 60. Rc8 {[%clk 0:00:06]}  Ra2+ {[%clk 0:00:21]} 61. Kf1 {[%clk 0:00:05]}  f4 {[%clk 0:00:21]} 62. Rc3 {[%clk 0:00:05]}  Rb2 {[%clk 0:00:21]} 63. Ra3 {[%clk 0:00:05]}  f3 {[%clk 0:00:21]} 64. Ra8 {[%clk 0:00:05]}  Kg3 {[%clk 0:00:21]} 65. Rg8+ {[%clk 0:00:05]}  Kf4 {[%clk 0:00:21]} 66. Rf8+ {[%clk 0:00:06]}  Ke3 {[%clk 0:00:21]} 67. Re8+ {[%clk 0:00:06]}  Kf4 {[%clk 0:00:21]} 68. Rf8+ {[%clk 0:00:07]}  Ke3 {[%clk 0:00:21]} 69. Re8+ {[%clk 0:00:08]}  Kf4 {[%clk 0:00:21]} 70. Rf8+ {[%clk 0:00:08]} 1/2-1/2


[Site "https://www.chess.com"]

[Event "Titled Tuesday Blitz July 18 Late 2023"]
[White "Mujumdar, Sameer"]
[Black "Ovchinnikov, Vsevolod"]
[WhiteFideId "2029707"]
[BlackFideId "24176842"]
[WhiteElo "2451"]
[BlackElo "2634"]
[Result "1-0"]
[Round "3"]
[TimeControl "180+2"]
[Date "2023.07.18"]
[WhiteClock "0:00:05"]
[BlackClock "0:00:09"]
[Board "78"]

1. d4 {[%clk 0:03:00]}  Nf6 {[%clk 0:02:58]} 2. Nf3 {[%clk 0:03:00]}  g6 {[%clk 0:02:59]} 3. Bf4 {[%clk 0:03:00]}  Bg7 {[%clk 0:02:59]} 4. Nbd2 {[%clk 0:03:00]}  d6 {[%clk 0:02:59]} 5. c3 {[%clk 0:03:01]}  Nfd7 {[%clk 0:03:00]} 6. e4 {[%clk 0:02:56]}  e5 {[%clk 0:03:00]} 7. Be3 {[%clk 0:02:56]}  Nc6 {[%clk 0:03:00]} 8. Bd3 {[%clk 0:02:50]}  O-O {[%clk 0:03:00]} 9. O-O {[%clk 0:02:47]}  h6 {[%clk 0:02:57]} 10. a3 {[%clk 0:02:33]}  b6 {[%clk 0:02:57]} 11. Qc2 {[%clk 0:02:32]}  Bb7 {[%clk 0:02:56]} 12. Rad1 {[%clk 0:02:31]}  a6 {[%clk 0:02:55]} 13. Nc4 {[%clk 0:02:05]}  Qe8 {[%clk 0:02:48]} 14. Qc1 {[%clk 0:01:59]}  Kh7 {[%clk 0:02:48]} 15. Rfe1 {[%clk 0:01:48]}  Rd8 {[%clk 0:02:47]} 16. Bb1 {[%clk 0:01:45]}  Qe7 {[%clk 0:02:09]} 17. b4 {[%clk 0:01:35]}  Nf6 {[%clk 0:01:58]} 18. d5 {[%clk 0:01:19]}  Nb8 {[%clk 0:01:58]} 19. h3 {[%clk 0:01:16]}  Bc8 {[%clk 0:01:55]} 20. Ncd2 {[%clk 0:01:14]}  Ne8 {[%clk 0:01:42]} 21. Nf1 {[%clk 0:01:05]}  f5 {[%clk 0:01:27]} 22. exf5 {[%clk 0:01:06]}  Bxf5 {[%clk 0:01:04]} 23. Ng3 {[%clk 0:01:04]}  Bxb1 {[%clk 0:01:04]} 24. Qxb1 {[%clk 0:01:05]}  Nd7 {[%clk 0:00:57]} 25. h4 {[%clk 0:00:59]}  Rf7 {[%clk 0:00:26]} 26. h5 {[%clk 0:00:46]}  Nf8 {[%clk 0:00:26]} 27. Qd3 {[%clk 0:00:33]}  Ra8 {[%clk 0:00:25]} 28. Ne4 {[%clk 0:00:31]}  Kh8 {[%clk 0:00:13]} 29. hxg6 {[%clk 0:00:30]}  Nxg6 {[%clk 0:00:14]} 30. Nh2 {[%clk 0:00:24]}  Nf4 {[%clk 0:00:12]} 31. Bxf4 {[%clk 0:00:25]}  Rxf4 {[%clk 0:00:13]} 32. g3 {[%clk 0:00:25]}  Rf7 {[%clk 0:00:13]} 33. Kg2 {[%clk 0:00:25]}  Nf6 {[%clk 0:00:13]} 34. Nxf6 {[%clk 0:00:23]}  Qxf6 {[%clk 0:00:14]} 35. Ng4 {[%clk 0:00:22]}  Qg5 {[%clk 0:00:14]} 36. Qe4 {[%clk 0:00:21]}  Raf8 {[%clk 0:00:14]} 37. Rh1 {[%clk 0:00:21]}  Kg8 {[%clk 0:00:13]} 38. Rh4 {[%clk 0:00:21]}  Rf5 {[%clk 0:00:03]} 39. Rf1 {[%clk 0:00:14]}  h5 {[%clk 0:00:03]} 40. Ne3 {[%clk 0:00:15]}  R5f6 {[%clk 0:00:03]} 41. c4 {[%clk 0:00:13]}  Bh6 {[%clk 0:00:03]} 42. Rhh1 {[%clk 0:00:12]}  Qg7 {[%clk 0:00:03]} 43. Qh4 {[%clk 0:00:09]}  Bxe3 {[%clk 0:00:03]} 44. fxe3 {[%clk 0:00:09]}  Rxf1 {[%clk 0:00:04]} 45. Rxf1 {[%clk 0:00:10]}  Rxf1 {[%clk 0:00:04]} 46. Kxf1 {[%clk 0:00:11]}  Qf7+ {[%clk 0:00:05]} 47. Ke2 {[%clk 0:00:10]}  Kh7 {[%clk 0:00:05]} 48. Qd8 {[%clk 0:00:10]}  Kg6 {[%clk 0:00:05]} 49. Qc8 {[%clk 0:00:10]}  a5 {[%clk 0:00:05]} 50. bxa5 {[%clk 0:00:09]}  bxa5 {[%clk 0:00:06]} 51. Qa6 {[%clk 0:00:09]}  e4 {[%clk 0:00:06]} 52. Qxa5 {[%clk 0:00:09]}  Qf3+ {[%clk 0:00:07]} 53. Kd2 {[%clk 0:00:09]}  Qf2+ {[%clk 0:00:07]} 54. Kc3 {[%clk 0:00:10]}  Qxe3+ {[%clk 0:00:08]} 55. Kb2 {[%clk 0:00:10]}  Qf2+ {[%clk 0:00:08]} 56. Kb3 {[%clk 0:00:11]}  Qxg3+ {[%clk 0:00:08]} 57. Kc2 {[%clk 0:00:09]}  Qd3+ {[%clk 0:00:08]} 58. Kb2 {[%clk 0:00:08]}  Qxc4 {[%clk 0:00:08]} 59. Qa8 {[%clk 0:00:06]}  Qd4+ {[%clk 0:00:08]} 60. Kc2 {[%clk 0:00:06]}  Qd3+ {[%clk 0:00:08]} 61. Kc1 {[%clk 0:00:06]}  Qe3+ {[%clk 0:00:08]} 62. Kc2 {[%clk 0:00:06]}  Qd3+ {[%clk 0:00:08]} 63. Kc1 {[%clk 0:00:07]}  h4 {[%clk 0:00:08]} 64. Qg8+ {[%clk 0:00:06]}  Kf5 {[%clk 0:00:09]} 65. Qf7+ {[%clk 0:00:06]}  Kg4 {[%clk 0:00:09]} 66. Qg6+ {[%clk 0:00:05]}  Kh3 {[%clk 0:00:09]} 67. Qf5+ {[%clk 0:00:04]}  Kg2 {[%clk 0:00:10]} 68. Qg4+ {[%clk 0:00:04]}  Kf1 {[%clk 0:00:08]} 69. Qxh4 {[%clk 0:00:03]}  e3 {[%clk 0:00:08]} 70. Qh1+ {[%clk 0:00:03]}  Kf2 {[%clk 0:00:08]} 71. Qh2+ {[%clk 0:00:03]}  Kf3 {[%clk 0:00:08]} 72. Qh3+ {[%clk 0:00:04]}  Kf4 {[%clk 0:00:08]} 73. Qh4+ {[%clk 0:00:04]}  Ke5 {[%clk 0:00:09]} 74. Qg5+ {[%clk 0:00:04]}  Kd4 {[%clk 0:00:09]} 75. Qf4+ {[%clk 0:00:04]}  Kxd5 {[%clk 0:00:09]} 76. Qg5+ {[%clk 0:00:04]}  Kc4 {[%clk 0:00:09]} 77. Qf4+ {[%clk 0:00:04]}  Kb3 {[%clk 0:00:09]} 78. Qb4+ {[%clk 0:00:04]}  Ka2 {[%clk 0:00:09]} 79. Qb2# {[%clk 0:00:05]} 1-0


[Site "https://www.chess.com"]

[Event "Titled Tuesday Blitz July 18 Late 2023"]
[White "Ballester Llagaria, Luis Eduardo"]
[Black "Gaal, Zsoka"]
[WhiteFideId "2297620"]
[BlackFideId "777765"]
[WhiteElo "2607"]
[BlackElo "2447"]
[Result "0-1"]
[Round "3"]
[TimeControl "180+2"]
[Date "2023.07.18"]
[WhiteClock "0:02:44"]
[BlackClock "0:02:38"]
[Board "79"]

1. e4 {[%clk 0:03:00]}  Nf6 {[%clk 0:02:58]} 2. e5 {[%clk 0:03:01]}  Nd5 {[%clk 0:02:58]} 3. d4 {[%clk 0:03:01]}  d6 {[%clk 0:02:58]} 4. Nf3 {[%clk 0:03:01]}  g6 {[%clk 0:02:58]} 5. Bc4 {[%clk 0:03:01]}  Nb6 {[%clk 0:02:57]} 6. Bb3 {[%clk 0:03:01]}  Bg7 {[%clk 0:02:57]} 7. Qe2 {[%clk 0:03:01]}  O-O {[%clk 0:02:57]} 8. h3 {[%clk 0:03:01]}  c5 {[%clk 0:02:42]} 9. dxc5 {[%clk 0:02:58]}  dxc5 {[%clk 0:02:43]} 10. c3 {[%clk 0:02:58]}  Nc6 {[%clk 0:02:40]} 11. Bf4 {[%clk 0:02:56]}  Bf5 {[%clk 0:02:40]} 12. Nbd2 {[%clk 0:02:56]}  Bd3 {[%clk 0:02:38]} 13. Qe3 {[%clk 0:02:56]}  c4 {[%clk 0:02:38]} 14. Bd1 {[%clk 0:02:49]}  Nd5 {[%clk 0:02:38]} 15. Qd4 {[%clk 0:02:44]}  Nxd4 {[%clk 0:02:38]} 0-1


[Site "https://www.chess.com"]

[Event "Titled Tuesday Blitz July 18 Late 2023"]
[White "Reprintsev, Alexander"]
[Black "Arabidze, Meri"]
[WhiteFideId "14100541"]
[BlackFideId "13604040"]
[WhiteElo "2446"]
[BlackElo "2607"]
[Result "0-1"]
[Round "3"]
[TimeControl "180+2"]
[Date "2023.07.18"]
[WhiteClock "0:00:00"]
[BlackClock "0:00:08"]
[Board "80"]

1. e4 {[%clk 0:03:00]}  c5 {[%clk 0:02:59]} 2. b3 {[%clk 0:02:56]}  e6 {[%clk 0:02:57]} 3. Bb2 {[%clk 0:02:53]}  b6 {[%clk 0:02:58]} 4. d4 {[%clk 0:02:51]}  cxd4 {[%clk 0:02:58]} 5. Qxd4 {[%clk 0:02:51]}  Nc6 {[%clk 0:02:56]} 6. Qd2 {[%clk 0:02:51]}  Bb4 {[%clk 0:02:50]} 7. Nc3 {[%clk 0:02:49]}  Nf6 {[%clk 0:02:47]} 8. Bd3 {[%clk 0:02:47]}  Ne5 {[%clk 0:02:38]} 9. a3 {[%clk 0:02:44]}  Bc5 {[%clk 0:02:24]} 10. Nf3 {[%clk 0:02:31]}  Nxd3+ {[%clk 0:02:10]} 11. Qxd3 {[%clk 0:02:31]}  Bb7 {[%clk 0:02:03]} 12. e5 {[%clk 0:02:19]}  Nd5 {[%clk 0:02:00]} 13. Nxd5 {[%clk 0:01:58]}  Bxd5 {[%clk 0:02:01]} 14. c4 {[%clk 0:01:50]}  Bb7 {[%clk 0:01:57]} 15. O-O-O {[%clk 0:01:48]}  O-O {[%clk 0:01:52]} 16. Qxd7 {[%clk 0:01:42]}  Bxf3 {[%clk 0:01:51]} 17. gxf3 {[%clk 0:01:41]}  Bxf2 {[%clk 0:01:43]} 18. Qxd8 {[%clk 0:01:36]}  Rfxd8 {[%clk 0:01:43]} 19. Kc2 {[%clk 0:01:36]}  h5 {[%clk 0:01:32]} 20. b4 {[%clk 0:01:34]}  h4 {[%clk 0:01:30]} 21. h3 {[%clk 0:01:34]}  Kh7 {[%clk 0:01:27]} 22. Rd6 {[%clk 0:01:25]}  Kg6 {[%clk 0:01:19]} 23. Rhd1 {[%clk 0:01:24]}  Rdc8 {[%clk 0:01:17]} 24. Kb3 {[%clk 0:01:22]}  Rc7 {[%clk 0:01:06]} 25. Bd4 {[%clk 0:01:19]}  Bxd4 {[%clk 0:01:00]} 26. R1xd4 {[%clk 0:01:19]}  Kf5 {[%clk 0:00:57]} 27. Rxh4 {[%clk 0:01:00]}  Kxe5 {[%clk 0:00:57]} 28. Rd3 {[%clk 0:01:00]}  f5 {[%clk 0:00:54]} 29. Re3+ {[%clk 0:00:54]}  Kf6 {[%clk 0:00:54]} 30. Rd4 {[%clk 0:00:44]}  g5 {[%clk 0:00:48]} 31. Rd6 {[%clk 0:00:43]}  Re8 {[%clk 0:00:46]} 32. a4 {[%clk 0:00:40]}  Rh7 {[%clk 0:00:45]} 33. c5 {[%clk 0:00:40]}  bxc5 {[%clk 0:00:45]} 34. bxc5 {[%clk 0:00:41]}  Rxh3 {[%clk 0:00:45]} 35. c6 {[%clk 0:00:41]}  Rh7 {[%clk 0:00:15]} 36. Kc4 {[%clk 0:00:40]}  g4 {[%clk 0:00:11]} 37. fxg4 {[%clk 0:00:39]}  fxg4 {[%clk 0:00:12]} 38. Rd4 {[%clk 0:00:20]}  Kf5 {[%clk 0:00:10]} 39. Re1 {[%clk 0:00:18]}  e5 {[%clk 0:00:10]} 40. Rf1+ {[%clk 0:00:18]}  Kg5 {[%clk 0:00:10]} 41. Re4 {[%clk 0:00:17]}  Rc7 {[%clk 0:00:08]} 42. Kd5 {[%clk 0:00:16]}  Rd8+ {[%clk 0:00:09]} 43. Kxe5 {[%clk 0:00:14]}  Re8+ {[%clk 0:00:07]} 44. Kd5 {[%clk 0:00:13]}  Rxe4 {[%clk 0:00:08]} 45. Kxe4 {[%clk 0:00:13]}  Rxc6 {[%clk 0:00:08]} 46. Rf7 {[%clk 0:00:13]}  Rc4+ {[%clk 0:00:08]} 47. Kd3 {[%clk 0:00:12]}  Rxa4 {[%clk 0:00:09]} 48. Ke2 {[%clk 0:00:12]}  Ra2+ {[%clk 0:00:08]} 49. Kf1 {[%clk 0:00:12]}  a5 {[%clk 0:00:08]} 50. Ra7 {[%clk 0:00:11]}  Kf4 {[%clk 0:00:07]} 51. Rc7 {[%clk 0:00:09]}  a4 {[%clk 0:00:07]} 52. Rc4+ {[%clk 0:00:09]}  Kg3 {[%clk 0:00:07]} 53. Rc3+ {[%clk 0:00:07]}  Kh4 {[%clk 0:00:08]} 54. Kg1 {[%clk 0:00:06]}  a3 {[%clk 0:00:08]} 55. Rb3 {[%clk 0:00:05]}  Ra1+ {[%clk 0:00:07]} 56. Kg2 {[%clk 0:00:04]}  Ra2+ {[%clk 0:00:08]} 57. Kg1 {[%clk 0:00:03]}  Kg5 {[%clk 0:00:09]} 58. Rb4 {[%clk 0:00:02]}  Rb2 {[%clk 0:00:07]} 59. Ra4 {[%clk 0:00:00]}  a2 {[%clk 0:00:08]} 0-1


[Site "https://www.chess.com"]

[Event "Titled Tuesday Blitz July 18 Late 2023"]
[White "Rodchenkov, Sergey D."]
[Black "Sliwicki, Damian"]
[WhiteFideId "4168712"]
[BlackFideId "1127128"]
[WhiteElo "2587"]
[BlackElo "2433"]
[Result "1-0"]
[Round "3"]
[TimeControl "180+2"]
[Date "2023.07.18"]
[WhiteClock "0:00:56"]
[BlackClock "0:00:20"]
[Board "88"]

1. e4 {[%clk 0:03:00]}  c5 {[%clk 0:02:54]} 2. Nf3 {[%clk 0:03:00]}  g6 {[%clk 0:02:54]} 3. d4 {[%clk 0:03:00]}  cxd4 {[%clk 0:02:52]} 4. Nxd4 {[%clk 0:03:01]}  Nc6 {[%clk 0:02:51]} 5. c4 {[%clk 0:02:59]}  Nf6 {[%clk 0:02:51]} 6. Nc3 {[%clk 0:02:59]}  Nxd4 {[%clk 0:02:51]} 7. Qxd4 {[%clk 0:03:00]}  d6 {[%clk 0:02:52]} 8. Be3 {[%clk 0:03:00]}  Bg7 {[%clk 0:02:49]} 9. Qd3 {[%clk 0:03:00]}  O-O {[%clk 0:02:48]} 10. Be2 {[%clk 0:03:00]}  a5 {[%clk 0:02:40]} 11. O-O {[%clk 0:02:58]}  a4 {[%clk 0:02:41]} 12. Bd4 {[%clk 0:02:55]}  Qa5 {[%clk 0:02:39]} 13. f4 {[%clk 0:02:55]}  a3 {[%clk 0:02:31]} 14. b3 {[%clk 0:02:51]}  Bd7 {[%clk 0:02:31]} 15. e5 {[%clk 0:02:31]}  Bf5 {[%clk 0:02:30]} 16. Qe3 {[%clk 0:02:28]}  Nd7 {[%clk 0:02:08]} 17. Nd5 {[%clk 0:01:59]}  Rfe8 {[%clk 0:01:59]} 18. Kh1 {[%clk 0:01:48]}  e6 {[%clk 0:01:43]} 19. Nf6+ {[%clk 0:01:46]}  Nxf6 {[%clk 0:01:32]} 20. exf6 {[%clk 0:01:47]}  Bh8 {[%clk 0:01:33]} 21. g4 {[%clk 0:01:39]}  e5 {[%clk 0:01:31]} 22. Bc3 {[%clk 0:01:25]}  exf4 {[%clk 0:01:26]} 23. Qxe8+ {[%clk 0:01:22]}  Rxe8 {[%clk 0:01:23]} 24. Bxa5 {[%clk 0:01:23]}  Be4+ {[%clk 0:01:10]} 25. Bf3 {[%clk 0:01:21]}  Bxf6 {[%clk 0:01:11]} 26. Rae1 {[%clk 0:01:18]}  Bxf3+ {[%clk 0:01:07]} 27. Rxf3 {[%clk 0:01:19]}  Be5 {[%clk 0:01:05]} 28. Bb4 {[%clk 0:01:00]}  Ra8 {[%clk 0:01:00]} 29. Rd3 {[%clk 0:00:56]}  Ra6 {[%clk 0:00:20]} 30. Red1 {[%clk 0:00:56]} 1-0


[Site "https://www.chess.com"]

[Event "Titled Tuesday Blitz July 18 Late 2023"]
[White "Arnold, Ken"]
[Black "Lizak, Peter"]
[WhiteFideId "2056836"]
[BlackFideId "731595"]
[WhiteElo "2430"]
[BlackElo "2586"]
[Result "0-1"]
[Round "3"]
[TimeControl "180+2"]
[Date "2023.07.18"]
[WhiteClock "0:00:12"]
[BlackClock "0:01:12"]
[Board "89"]

1. d4 {[%clk 0:03:00]}  Nf6 {[%clk 0:02:59]} 2. Nf3 {[%clk 0:03:01]}  c5 {[%clk 0:03:00]} 3. c3 {[%clk 0:03:00]}  d5 {[%clk 0:03:00]} 4. g3 {[%clk 0:03:01]}  Nc6 {[%clk 0:03:00]} 5. Bg2 {[%clk 0:03:01]}  cxd4 {[%clk 0:03:01]} 6. Nxd4 {[%clk 0:03:01]}  e5 {[%clk 0:03:01]} 7. Nxc6 {[%clk 0:03:01]}  bxc6 {[%clk 0:03:01]} 8. O-O {[%clk 0:03:01]}  Be7 {[%clk 0:03:02]} 9. b3 {[%clk 0:03:00]}  O-O {[%clk 0:03:02]} 10. Bb2 {[%clk 0:03:01]}  a5 {[%clk 0:03:00]} 11. Nd2 {[%clk 0:02:59]}  a4 {[%clk 0:03:00]} 12. c4 {[%clk 0:02:58]}  d4 {[%clk 0:02:57]} 13. Bxc6 {[%clk 0:02:42]}  Bh3 {[%clk 0:02:57]} 14. Bg2 {[%clk 0:02:36]}  Bxg2 {[%clk 0:02:53]} 15. Kxg2 {[%clk 0:02:36]}  a3 {[%clk 0:02:51]} 16. Bc1 {[%clk 0:02:36]}  e4 {[%clk 0:02:51]} 17. f3 {[%clk 0:02:17]}  e3 {[%clk 0:02:41]} 18. Ne4 {[%clk 0:02:13]}  Nxe4 {[%clk 0:02:40]} 19. fxe4 {[%clk 0:02:13]}  Bb4 {[%clk 0:02:39]} 20. Qd3 {[%clk 0:02:11]}  Ra6 {[%clk 0:02:23]} 21. Rb1 {[%clk 0:02:01]}  Re6 {[%clk 0:02:20]} 22. Rf5 {[%clk 0:01:58]}  Rf6 {[%clk 0:01:32]} 23. Rxf6 {[%clk 0:00:34]}  Qxf6 {[%clk 0:01:32]} 24. Bxe3 {[%clk 0:00:34]}  dxe3 {[%clk 0:01:30]} 25. Qxe3 {[%clk 0:00:33]}  Rd8 {[%clk 0:01:23]} 26. Rf1 {[%clk 0:00:31]}  Qc6 {[%clk 0:01:17]} 27. Qf3 {[%clk 0:00:30]}  f6 {[%clk 0:01:16]} 28. h4 {[%clk 0:00:19]}  Rd2 {[%clk 0:01:14]} 29. Kh3 {[%clk 0:00:18]}  Qe6+ {[%clk 0:01:13]} 30. g4 {[%clk 0:00:17]}  Rxa2 {[%clk 0:01:13]} 31. Qd3 {[%clk 0:00:15]}  Rd2 {[%clk 0:01:12]} 32. Qf3 {[%clk 0:00:12]}  a2 {[%clk 0:01:12]} 0-1


[Site "https://www.chess.com"]

[Event "Titled Tuesday Blitz July 18 Late 2023"]
[White "Pinero Rodriguez, Carlos Jose"]
[Black "Uzcategui Rodriguez, Alejandro"]
[WhiteFideId "3901726"]
[BlackFideId "3903400"]
[WhiteElo "2583"]
[BlackElo "2423"]
[Result "1-0"]
[Round "3"]
[TimeControl "180+2"]
[Date "2023.07.18"]
[WhiteClock "0:00:38"]
[BlackClock "0:00:11"]
[Board "93"]

1. b3 {[%clk 0:03:00]}  e5 {[%clk 0:02:57]} 2. Bb2 {[%clk 0:03:01]}  Nc6 {[%clk 0:02:58]} 3. e3 {[%clk 0:03:01]}  a6 {[%clk 0:02:58]} 4. c4 {[%clk 0:03:01]}  Nf6 {[%clk 0:02:57]} 5. a3 {[%clk 0:03:01]}  a5 {[%clk 0:02:53]} 6. Nc3 {[%clk 0:03:00]}  Be7 {[%clk 0:02:48]} 7. Qc2 {[%clk 0:02:59]}  d6 {[%clk 0:02:47]} 8. Nf3 {[%clk 0:02:59]}  Bg4 {[%clk 0:02:47]} 9. h3 {[%clk 0:02:59]}  Bh5 {[%clk 0:02:48]} 10. d3 {[%clk 0:02:58]}  O-O {[%clk 0:02:45]} 11. g4 {[%clk 0:02:58]}  Bg6 {[%clk 0:02:45]} 12. Ne4 {[%clk 0:02:58]}  Nxe4 {[%clk 0:02:32]} 13. dxe4 {[%clk 0:02:59]}  h5 {[%clk 0:02:31]} 14. Be2 {[%clk 0:02:58]}  h4 {[%clk 0:02:30]} 15. Rd1 {[%clk 0:02:52]}  Qc8 {[%clk 0:02:25]} 16. Nd2 {[%clk 0:02:45]}  Bg5 {[%clk 0:02:09]} 17. Nb1 {[%clk 0:02:45]}  Nb8 {[%clk 0:02:07]} 18. Nc3 {[%clk 0:02:45]}  Nd7 {[%clk 0:02:05]} 19. Nb5 {[%clk 0:02:42]}  Nc5 {[%clk 0:01:57]} 20. Bf3 {[%clk 0:02:40]}  Rd8 {[%clk 0:01:51]} 21. O-O {[%clk 0:02:40]}  Be7 {[%clk 0:01:16]} 22. Bg2 {[%clk 0:02:36]}  c6 {[%clk 0:01:01]} 23. Nc3 {[%clk 0:02:37]}  f6 {[%clk 0:01:00]} 24. a4 {[%clk 0:02:35]}  d5 {[%clk 0:00:50]} 25. f4 {[%clk 0:02:20]}  exf4 {[%clk 0:00:44]} 26. exf4 {[%clk 0:02:19]}  Nxe4 {[%clk 0:00:41]} 27. Nxe4 {[%clk 0:02:18]}  dxe4 {[%clk 0:00:38]} 28. Bxe4 {[%clk 0:02:19]}  Bc5+ {[%clk 0:00:38]} 29. Kg2 {[%clk 0:02:15]}  Bxe4+ {[%clk 0:00:35]} 30. Qxe4 {[%clk 0:02:16]}  Qc7 {[%clk 0:00:35]} 31. Qf5 {[%clk 0:02:03]}  Rxd1 {[%clk 0:00:29]} 32. Rxd1 {[%clk 0:02:02]}  Re8 {[%clk 0:00:28]} 33. Rd7 {[%clk 0:01:00]}  Qc8 {[%clk 0:00:28]} 34. Bxf6 {[%clk 0:00:52]}  Re2+ {[%clk 0:00:25]} 35. Kh1 {[%clk 0:00:45]}  Re1+ {[%clk 0:00:22]} 36. Kg2 {[%clk 0:00:45]}  Re2+ {[%clk 0:00:22]} 37. Kf1 {[%clk 0:00:43]}  Rf2+ {[%clk 0:00:20]} 38. Ke1 {[%clk 0:00:41]}  Qe8+ {[%clk 0:00:17]} 39. Be5 {[%clk 0:00:41]}  Rxf4 {[%clk 0:00:13]} 40. Rxg7+ {[%clk 0:00:37]}  Kh8 {[%clk 0:00:11]} 41. Qh7# {[%clk 0:00:38]} 1-0


[Site "https://www.chess.com"]

[Event "Titled Tuesday Blitz July 18 Late 2023"]
[White "Castaneda, Jhon David"]
[Black "Herman, Daniel"]
[WhiteFideId "4405048"]
[BlackFideId "30935008"]
[WhiteElo "2583"]
[BlackElo "2419"]
[Result "0-1"]
[Round "3"]
[TimeControl "180+2"]
[Date "2023.07.18"]
[WhiteClock "0:00:00"]
[BlackClock "0:00:11"]
[Board "94"]

1. d4 {[%clk 0:02:59]}  Nf6 {[%clk 0:02:58]} 2. Nf3 {[%clk 0:02:59]}  e6 {[%clk 0:02:58]} 3. c4 {[%clk 0:02:59]}  b6 {[%clk 0:02:58]} 4. g3 {[%clk 0:02:59]}  Ba6 {[%clk 0:02:58]} 5. Qa4 {[%clk 0:02:58]}  c5 {[%clk 0:02:53]} 6. Bg2 {[%clk 0:02:58]}  Bb7 {[%clk 0:02:51]} 7. dxc5 {[%clk 0:02:58]}  bxc5 {[%clk 0:02:47]} 8. O-O {[%clk 0:02:58]}  Be7 {[%clk 0:02:44]} 9. Nc3 {[%clk 0:02:57]}  O-O {[%clk 0:02:42]} 10. Bf4 {[%clk 0:02:55]}  Qb6 {[%clk 0:02:35]} 11. Qc2 {[%clk 0:02:49]}  Nc6 {[%clk 0:02:29]} 12. Rfd1 {[%clk 0:02:45]}  d5 {[%clk 0:02:25]} 13. cxd5 {[%clk 0:02:42]}  exd5 {[%clk 0:02:26]} 14. a3 {[%clk 0:02:21]}  Rfd8 {[%clk 0:02:09]} 15. Rac1 {[%clk 0:02:15]}  Rac8 {[%clk 0:02:04]} 16. Bh3 {[%clk 0:02:10]}  c4 {[%clk 0:01:49]} 17. Bxc8 {[%clk 0:02:07]}  Bxc8 {[%clk 0:01:50]} 18. Be3 {[%clk 0:01:29]}  Qc7 {[%clk 0:01:26]} 19. Nb5 {[%clk 0:01:27]}  Qd7 {[%clk 0:01:23]} 20. Nbd4 {[%clk 0:01:25]}  Nxd4 {[%clk 0:01:21]} 21. Bxd4 {[%clk 0:01:19]}  Qh3 {[%clk 0:01:17]} 22. Qa4 {[%clk 0:00:51]}  Bf5 {[%clk 0:00:53]} 23. Bxf6 {[%clk 0:00:49]}  Bxf6 {[%clk 0:00:48]} 24. Rxd5 {[%clk 0:00:48]}  Rf8 {[%clk 0:00:29]} 25. Rcd1 {[%clk 0:00:32]}  h6 {[%clk 0:00:20]} 26. Rc5 {[%clk 0:00:28]}  Be6 {[%clk 0:00:16]} 27. Qxa7 {[%clk 0:00:23]}  Bxb2 {[%clk 0:00:16]} 28. a4 {[%clk 0:00:18]}  c3 {[%clk 0:00:16]} 29. Qc7 {[%clk 0:00:17]}  Bb3 {[%clk 0:00:13]} 30. Rd8 {[%clk 0:00:16]}  Rxd8 {[%clk 0:00:10]} 31. Qxd8+ {[%clk 0:00:17]}  Kh7 {[%clk 0:00:11]} 32. Rxc3 {[%clk 0:00:15]}  Bxc3 {[%clk 0:00:10]} 33. Qd3+ {[%clk 0:00:16]}  g6 {[%clk 0:00:10]} 34. Qxc3 {[%clk 0:00:00]}  Qe6 {[%clk 0:00:11]} 0-1


[Site "https://www.chess.com"]